fUSD/lending_fUSD_20250417
["ID","MTS","AMOUNT","RATE_DAILY","PERIOD"]
[358294904,1744900256751,-152.36,0.007562,87]
[358294905,1744900256763,-800.0,0.00757753,120]
[358294906,1744900256775,-500.0,0.0076,120]
[358294907,1744900256788,-800.0,0.00763232,120]
[358294908,1744900256800,-219.0,0.0076332,120]
[358294909,1744900256813,-527.93038494,0.00765752,120]
[358294910,1744900256826,-500.0,0.00765752,120]
[358294911,1744900256841,-500.0,0.00765752,120]
[358294912,1744900256851,-500.0,0.00765752,120]
[358294913,1744900256861,-500.0,0.00765752,120]
[358294914,1744900256871,-1120.62,0.00767123,7]
[358294915,1744900256881,-500.0,0.00767123,120]
[358294916,1744900256891,-634.9,0.00767123,120]
[358294917,1744900256900,-990.80193428,0.0076848,120]
[358294918,1744900256910,-1088.258846,0.0076849,120]
[358294919,1744900256922,-800.0,0.00768712,120]
[358294920,1744900256932,-1088.258846,0.00768848,120]
[358294921,1744900256941,-990.80193428,0.00769395,120]
[358294922,1744900256951,-1088.258846,0.00769716,120]
[358294923,1744900256961,-990.80193428,0.00769978,120]
[358294924,1744900256971,-1000.0,0.0077,120]
[358294925,1744900256980,-1021.39,0.0077,120]
[358294926,1744900256990,-597.27,0.0077,120]
[358294927,1744900257000,-506.51240801,0.00770858,120]
[358294928,1744900257009,-1000.0,0.00771553,4]
[358294929,1744900257019,-1000.0,0.00771553,4]
[358294930,1744900257029,-1000.0,0.00771553,4]
[358294931,1744900257038,-1000.0,0.00771553,4]
[358294932,1744900257048,-1000.0,0.00771553,4]
[358294933,1744900257057,-1000.0,0.00771553,4]
[358294934,1744900257067,-1000.0,0.00771553,4]
[358294935,1744900257077,-1000.0,0.00771553,4]
[358294936,1744900257087,-1000.0,0.00771553,4]
[358294937,1744900257097,-606.61300277,0.00771553,4]
[358294938,1744900257107,-500.0,0.00771626,120]
[358294939,1744900257117,-93299.49140723,0.007722,30]
[358294940,1744900257486,-46618.51270254,0.007722,30]
[358294941,1744900257498,-1531.98850713,0.007722,30]
[358294942,1744900257511,-4103.65,0.007722,30]
[358294943,1744900257665,10000.0,0.00052551,120]
[358294944,1744900297491,10000.0,0.00052551,120]
[358294945,1744900345333,7195.0,0.00052551,120]
[358294947,1744900633397,159.16058972,0.00052477,120]
[358294949,1744901185989,200.0,0.00017757,2]
[358294950,1744901191096,-160.0,0.00035993,30]
[358294951,1744901191121,-173.0,0.00041,14]
[358294952,1744901191260,-214.36449667,0.00041095,120]
[358294953,1744901191289,-41.05975447,0.00046037,2]
[358294954,1744901231608,118397.43675475,0.00052753,30]
[358294955,1744901232083,-790.22924834,0.00046037,2]
[358294956,1744901232106,-206.25705936,0.00046037,2]
[358294957,1744901232131,-490.35792521,0.00046037,2]
[358294958,1744901232153,-173.47601504,0.00046102,120]
[358294959,1744901238086,-299.96355978,0.00046102,120]
[358294960,1744901242099,-453.71600293,0.00046102,120]
[358294961,1744901246123,-72.84442225,0.00046102,120]
[358294962,1744901246151,-250.0,0.00046137,2]
[358294963,1744901246174,-26.86281627,0.00046137,2]
[358294964,1744901249107,-3146.55718373,0.00046137,2]
[358294965,1744901249128,-307.70700237,0.00046137,30]
[358294966,1744901249154,-208.42,0.00047485,2]
[358294967,1744901249177,-201.26501,0.000486,120]
[358294968,1744901253100,-434.29090904,0.00048527,120]
[358294969,1744901253123,-298.73499,0.000486,120]
[358294970,1744901253147,-535.14564087,0.00049315,2]
[358294971,1744901253170,-5026.0,0.0005,21]
[358294972,1744901253194,-500.0,0.00050006,120]
[358294973,1744901253215,-192.31211682,0.00051413,120]
[358294974,1744901253239,-151.0,0.000518,100]
[358294975,1744901253261,-171.73387809,0.00052,120]
[358294976,1744901253284,-156.398702,0.00052054,120]
[358294977,1744901253307,-156.398703,0.00052054,120]
[358294978,1744901253338,-305.75,0.000521,51]
[358294979,1744901253367,-305.75,0.000521,51]
[358294980,1744901253398,-305.75,0.000521,51]
[358294981,1744901253427,-305.75,0.000521,51]
[358294982,1744901253455,-305.75,0.000521,51]
[358294983,1744901253483,-305.75,0.000521,51]
[358294984,1744901253511,-305.75,0.000521,51]
[358294985,1744901253541,-305.75,0.000521,51]
[358294986,1744901253570,-305.75,0.000521,51]
[358294987,1744901253601,-305.75,0.000521,51]
[358294988,1744901253631,-305.75,0.000521,51]
[358294989,1744901253664,-305.75,0.000521,51]
[358294990,1744901253686,-182.14322667,0.000523,10]
[358294991,1744901253708,-155.76380651,0.000523,10]
[358294992,1744901253730,-151.52023776,0.000523,10]
[358294993,1744901253756,-158.26548598,0.000523,10]
[358294994,1744901253778,-161.8221155,0.000523,10]
[358294995,1744901253800,-630.79885609,0.000523,10]
[358294996,1744901253821,-159.99682634,0.000523,10]
[358294997,1744901253842,-161.03922995,0.000523,10]
[358294998,1744901253864,-500.0,0.000523,2]
[358294999,1744901253888,-500.0,0.000523,10]
[358295000,1744901253910,-485.34368695,0.000523,10]
[358295001,1744901253932,-500.0,0.0005235,2]
[358295002,1744901253953,-358.77789518,0.0005235,5]
[358295003,1744901253975,-500.0,0.0005235,2]
[358295004,1744901253995,-355.82039354,0.0005235,10]
[358295005,1744901254016,-508.36189712,0.0005235,10]
[358295006,1744901254183,-500.0,0.00052353,2]
[358295007,1744901254205,-150.0,0.00052453,10]
[358295008,1744901254228,-150.0,0.00052453,10]
[358295009,1744901254249,-200.0,0.00052453,10]
[358295010,1744901254271,-150.0,0.00052453,10]
[358295011,1744901254293,-150.0,0.00052453,10]
[358295012,1744901254314,-200.0,0.00052453,10]
[358295013,1744901254335,-150.0,0.00052453,10]
[358295014,1744901254355,-150.0,0.00052453,10]
[358295015,1744901254377,-200.0,0.00052453,10]
[358295016,1744901254397,-150.0,0.00052453,10]
[358295017,1744901254419,-150.0,0.00052453,10]
[358295018,1744901254440,-150.0,0.00052453,10]
[358295019,1744901254461,-200.0,0.00052453,10]
[358295020,1744901254483,-150.0,0.00052453,10]
[358295021,1744901254504,-150.0,0.00052453,10]
[358295022,1744901254526,-500.0,0.00052453,10]
[358295023,1744901254546,-500.0,0.00052453,10]
[358295024,1744901254572,-296.0,0.00052453,10]
[358295025,1744901254598,-213.07514338,0.00052453,10]
[358295026,1744901254626,-500.0,0.00052453,10]
[358295027,1744901254648,-500.0,0.00052453,10]
[358295028,1744901254669,-500.0,0.00052453,10]
[358295029,1744901254691,-443.0,0.00052453,10]
[358295030,1744901254711,-235.0,0.00052551,10]
[358295031,1744901254732,-4167.08544419,0.0005275,120]
[358295032,1744901347125,-151.0,0.00045,120]
[358295033,1744901347147,-2564.90683,0.00052,10]
[358295034,1744901355130,-9063.69747514,0.00052,10]
[358295035,1744901355423,-248280.795,0.00052,10]
[358295036,1744901358090,-325.89926216,0.00052,10]
[358295037,1744901365115,-434.29090904,0.00051922,10]
[358295038,1744901365137,-3314.5262954,0.00052,10]
[358295039,1744901370096,-8805.32935428,0.00052,10]
[358295046,1744901431913,-452.11399997,0.00045,120]
[358295047,1744901431958,-0.88600003,0.00045,120]
[358295048,1744901431969,-717.14637867,0.0005199,2]
[358295049,1744901431981,-1043.81180349,0.0005199,2]
[358295050,1744901432019,-899.42810628,0.0005199,2]
[358295051,1744901432030,-6935.57189372,0.00052,10]
[358295052,1744901432074,-305.72859,0.00052,10]
[358295053,1744901432087,-326.29134845,0.00052,10]
[358295054,1744901432129,-888.22491705,0.00052,10]
[358295055,1744901432181,-300.2,0.00052,10]
[358295056,1744901432194,-462.00493998,0.00052,10]
[358295057,1744901432208,-302.0,0.00052,10]
[358295082,1744901438107,-1285.48705658,0.00052,10]
[358295083,1744901438170,-1731.16,0.00052,10]
[358295084,1744901438189,-2024.25,0.00052,10]
[358295085,1744901438205,-60083.92703724,0.00052,10]
[358295086,1744901438215,-626.34007119,0.00052,30]
[358295087,1744901438225,-3053.53,0.00052753,10]
[358295088,1744901438235,-411.12,0.00052753,4]
[358295089,1744901438245,-1000.0,0.00052753,6]
[358295090,1744901438255,-150.0,0.00052753,10]
[358295091,1744901438265,-156.398702,0.00052876,120]
[358295092,1744901438275,-156.398703,0.00052876,120]
[358295093,1744901438286,-1800.0,0.00053,54]
[358295094,1744901438295,-156.398702,0.00053698,120]
[358295095,1744901438305,-156.398703,0.00053698,120]
[358295096,1744901438315,-1800.0,0.00054,55]
[358295097,1744901438325,-156.398702,0.0005452,120]
[358295098,1744901438335,-156.398703,0.0005452,120]
[358295099,1744901438345,-1800.0,0.00055,56]
[358295100,1744901438355,-832.91455581,0.00055,120]
[358295101,1744901438365,-926.54,0.00055,120]
[358295102,1744901438374,-1000.0,0.00055,120]
[358295103,1744901438384,-156.398702,0.00055068,120]
[358295104,1744901438394,-156.398703,0.00055068,120]
[358295105,1744901438403,-208.42,0.00055322,2]
[358295106,1744901438413,-150.0,0.000554,120]
[358295108,1744901438422,-156.398702,0.00055616,120]
[358295110,1744901438431,-156.398703,0.00055616,120]
[358295112,1744901438441,-1800.0,0.00056,57]
[358295114,1744901438450,-1800.0,0.00057,58]
[358295116,1744901438460,-1800.0,0.00058,59]
[358295118,1744901438469,-350.0,0.00058025,111]
[358295120,1744901438478,-206.89,0.00058312,120]
[358295122,1744901438487,-377.94,0.00058424,30]
[358295124,1744901438498,-164.32,0.00058471,2]
[358295126,1744901438507,-1076.55,0.00058698,2]
[358295128,1744901438517,-1800.0,0.00059,60]
[358295130,1744901438526,-2000.0,0.00059179,120]
[358295132,1744901438536,-150.0,0.00059841,120]
[358295133,1744901438545,-798.81558,0.0006,61]
[358295134,1744901438555,-1000.0,0.0006,120]
[358295135,1744901438564,-150.0,0.00061211,120]
[358295136,1744901438573,-150.0,0.0006171,120]
[358295137,1744901438583,-153.0,0.00062352,120]
[358295138,1744901438592,-166.66,0.00062533,120]
[358295139,1744901438602,-174.04,0.00062786,2]
[358295140,1744901438611,-150.0,0.00062823,120]
[358295141,1744901438621,-209.97,0.00062863,2]
[358295142,1744901438630,-1000.0,0.0006301,120]
[358295143,1744901438640,-1500.0,0.00063025,120]
[358295144,1744901438649,-23900.0,0.00063438,2]
[358295145,1744901438659,-12500.0,0.0006489,20]
[358295146,1744901438668,-174.04,0.00065049,2]
[358295147,1744901438678,-174.04,0.00067313,2]
[358295149,1744901438687,-200.0,0.00068727,30]
[358295151,1744901438697,-4000.0,0.00068727,30]
[358295153,1744901438706,-174.04,0.00069577,2]
[358295155,1744901438716,-200.0,0.00069858,120]
[358295157,1744901438726,-1000.0,0.00070886,120]
[358295159,1744901438735,-1000.0,0.00071233,120]
[358295162,1744901438746,-1000.0,0.00071363,120]
[358295164,1744901438755,-1000.0,0.00071494,120]
[358295166,1744901438765,-1000.0,0.00071624,120]
[358295167,1744901438775,-1000.0,0.00071755,120]
[358295169,1744901438784,-174.04,0.00071841,2]
[358295172,1744901438794,-1000.0,0.00071885,120]
[358295174,1744901438803,-3551.18861888,0.00071887,15]
[358295175,1744901438813,-160.0,0.00071987,120]
[358295177,1744901438824,-1000.0,0.00072016,120]
[358295179,1744901438834,-1000.0,0.00072146,120]
[358295181,1744901438843,-1000.0,0.00072277,120]
[358295183,1744901438853,-1000.0,0.00072407,120]
[358295185,1744901438863,-1000.0,0.00072538,120]
[358295187,1744901438872,-1000.0,0.00072668,120]
[358295189,1744901438882,-1000.0,0.00072798,120]
[358295191,1744901438891,-1000.0,0.00072929,120]
[358295193,1744901438901,-1000.0,0.00073059,120]
[358295195,1744901438910,-1000.0,0.0007319,120]
[358295197,1744901438919,-801.0044304,0.0007332,120]
[358295199,1744901438932,-198.9955696,0.0007332,120]
[358295201,1744901438942,-1000.0,0.00073451,120]
[358295203,1744901438951,-935.90068657,0.00073581,120]
[358295206,1744901438968,-64.09931343,0.00073581,120]
[358295208,1744901438978,-1000.0,0.00073712,120]
[358295210,1744901438988,-508.80068651,0.00073842,120]
[358295212,1744901439005,-474.74284687,0.00073842,120]
[358295215,1744901439018,-16.45646662,0.00073842,120]
[358295217,1744901439027,-615.84050893,0.00073973,120]
[358295219,1744901439038,-709.67665617,0.00073973,120]
[358295221,1744901439048,-174.04,0.00074105,2]
[358295223,1744901439058,-320.39577236,0.00074167,15]
[358295225,1744901439067,-3551.18861884,0.00075,15]
[358295227,1744901439077,-174.04,0.00076369,2]
[358295229,1744901439086,-3551.18861884,0.00078112,15]
[358295231,1744901439096,-174.04,0.00078633,2]
[358295233,1744901439106,-1000.0,0.00078762,120]
[358295235,1744901439118,-153.0,0.00079469,120]
[358295237,1744901439127,-174.04,0.00080897,2]
[358295239,1744901439137,-3551.18861884,0.00081225,15]
[358295241,1744901439146,-377.94,0.00081793,30]
[358295243,1744901439156,-1000.0,0.00082191,120]
[358295245,1744901439166,-1000.0,0.00082191,120]
[358295247,1744901439175,-1000.0,0.00082191,120]
[358295249,1744901439185,-179.83548135,0.00082191,120]
[358295251,1744901439195,-500.0,0.00082191,120]
[358295253,1744901439208,-500.0,0.00082191,120]
[358295255,1744901439217,-862.52,0.00082191,120]
[358295257,1744901439227,-452.16158446,0.00082191,120]
[358295259,1744901439237,-500.0,0.00082191,120]
[358295261,1744901439247,-500.0,0.00082191,120]
[358295263,1744901439257,-500.0,0.00082191,120]
[358295265,1744901439267,-500.0,0.00082191,120]
[358295266,1744901439276,-619.20182369,0.00082191,120]
[358295269,1744901439286,-500.0,0.00082191,120]
[358295270,1744901439296,-500.0,0.00082191,120]
[358295272,1744901439305,-500.0,0.00082191,120]
[358295275,1744901439315,-500.0,0.00082191,120]
[358295276,1744901439325,-500.0,0.00082191,120]
[358295279,1744901439335,-500.0,0.00082191,120]
[358295281,1744901439345,-500.0,0.00082191,120]
[358295282,1744901439355,-500.0,0.00082191,120]
[358295285,1744901439366,-200.0,0.00082191,120]
[358295287,1744901439375,-500.0,0.00082191,120]
[358295288,1744901439385,-500.0,0.00082191,120]
[358295291,1744901439395,-516.8520066,0.00082191,120]
[358295293,1744901439405,-189.16517466,0.00082191,120]
[358295295,1744901439415,-500.0,0.00082191,120]
[358295297,1744901439425,-500.0,0.00082191,120]
[358295298,1744901439434,-500.0,0.00082191,120]
[358295300,1744901439443,-500.0,0.00082191,120]
[358295302,1744901439452,-500.0,0.00082191,120]
[358295304,1744901439462,-500.0,0.00082191,120]
[358295306,1744901439472,-500.0,0.00082191,7]
[358295308,1744901439481,-505.54501509,0.00082191,120]
[358295311,1744901439490,-500.0,0.00082191,120]
[358295313,1744901439502,-500.0,0.00082191,120]
[358295314,1744901439511,-504.52010485,0.00082191,120]
[358295317,1744901439525,-500.0,0.00082191,120]
[358295319,1744901439534,-500.0,0.00082191,120]
[358295321,1744901439544,-500.0,0.00082191,120]
[358295323,1744901439554,-500.0,0.00082191,120]
[358295325,1744901439564,-500.0,0.00082191,120]
[358295327,1744901439573,-500.0,0.00082191,120]
[358295329,1744901439582,-500.0,0.00082191,120]
[358295331,1744901439592,-524.63404989,0.00082191,120]
[358295333,1744901439601,-500.0,0.00082191,120]
[358295335,1744901439611,-500.0,0.00082191,120]
[358295337,1744901439620,-500.0,0.00082191,120]
[358295339,1744901439629,-500.0,0.00082191,120]
[358295341,1744901439639,-500.0,0.00082191,120]
[358295343,1744901439650,-500.0,0.00082191,120]
[358295345,1744901439660,-500.0,0.00082191,120]
[358295347,1744901439670,-500.0,0.00082191,120]
[358295349,1744901439680,-500.0,0.00082191,120]
[358295351,1744901439689,-500.0,0.00082191,120]
[358295353,1744901439699,-500.0,0.00082191,120]
[358295355,1744901439709,-500.0,0.00082191,120]
[358295357,1744901439720,-500.0,0.00082191,120]
[358295359,1744901439729,-484.36853179,0.00082191,120]
[358295361,1744901439739,-210.57090834,0.00082191,120]
[358295363,1744901439750,-517.9,0.00082191,120]
[358295365,1744901439760,-155.33,0.00082191,120]
[358295367,1744901439769,-503.56904447,0.00082191,120]
[358295369,1744901439779,-500.0,0.00082191,120]
[358295371,1744901439789,-500.0,0.00082191,120]
[358295373,1744901439801,-500.0,0.00082191,120]
[358295375,1744901439811,-500.0,0.00082191,120]
[358295377,1744901439820,-500.0,0.00082191,120]
[358295379,1744901439830,-386.44573778,0.00082191,120]
[358295381,1744901439839,-500.0,0.00082191,120]
[358295383,1744901439849,-500.0,0.00082191,120]
[358295385,1744901439858,-500.0,0.00082191,120]
[358295387,1744901439868,-504.97311187,0.00082191,120]
[358295399,1744901439877,-500.0,0.00082191,120]
[358295401,1744901439988,-500.0,0.00082191,120]
[358295403,1744901439998,-500.0,0.00082191,120]
[358295406,1744901440009,-500.0,0.00082191,120]
[358295408,1744901440019,-500.0,0.00082191,120]
[358295409,1744901440029,-500.0,0.00082191,120]
[358295411,1744901440039,-500.0,0.00082191,120]
[358295413,1744901440051,-561.46,0.00082191,30]
[358295415,1744901440061,-150.0,0.00082624,120]
[358295417,1744901440071,-174.04,0.00083161,2]
[358295419,1744901440080,-500.0,0.00083578,15]
[358295421,1744901440089,-500.0,0.00083578,2]
[358295423,1744901440099,-3551.18861884,0.00084337,15]
[358295425,1744901440108,-4159.4731,0.000849,120]
[358295427,1744901440118,-991.9314,0.000849,120]
[358295429,1744901440128,-521.3916,0.000849,120]
[358295431,1744901440137,-1000.0,0.000849,30]
[358295433,1744901440147,-1000.0,0.000849,30]
[358295435,1744901440156,-2500.0,0.000849,30]
[358295437,1744901440165,-1825.52,0.00084999,120]
[358295439,1744901440175,-500.0,0.00084999,2]
[358295441,1744901440184,-500.0,0.00084999,120]
[358295443,1744901440194,-97227.66442127,0.00085,120]
[358295445,1744901440210,-5643.73488195,0.00085,120]
[358295448,1744901440221,-56128.60069678,0.00085,120]
[358295450,1744901440231,-174.04,0.00085424,2]
[358295452,1744901440242,-1000.0,0.00086639,120]
[358295454,1744901440252,-3551.18861884,0.0008745,15]
[358295456,1744901440262,-174.04,0.00087688,2]
[358295458,1744901440271,-16000.0,0.00089,120]
[358295460,1744901440282,-48000.0,0.00089,120]
[358295461,1744901440292,-48000.0,0.00089,120]
[358295463,1744901440302,-37000.0,0.00089,120]
[358295465,1744901440311,-192.36064001,0.0008918,54]
[358295467,1744901440321,-174.04,0.00089952,2]
[358295469,1744901440330,-3551.18861884,0.00090562,15]
[358295471,1744901440340,-174.04,0.00092216,2]
[358295473,1744901440349,-248.8207864,0.00092257,7]
[358295475,1744901440358,-862.52,0.0009315,120]
[358295477,1744901440368,-500.0,0.0009315,120]
[358295479,1744901440377,-500.0,0.0009315,120]
[358295480,1744901440387,-500.0,0.0009315,120]
[358295481,1744901440396,-500.0,0.0009315,120]
[358295482,1744901440405,-500.0,0.0009315,120]
[358295483,1744901440415,-500.0,0.0009315,120]
[358295484,1744901440424,-496.20160003,0.0009315,120]
[358295485,1744901440434,-500.0,0.0009315,120]
[358295486,1744901440447,-500.0,0.0009315,120]
[358295487,1744901440458,-500.0,0.0009315,120]
[358295488,1744901440468,-500.0,0.0009315,120]
[358295489,1744901440478,-531.11377149,0.0009315,120]
[358295490,1744901440487,-500.0,0.0009315,120]
[358295491,1744901440497,-500.0,0.0009315,120]
[358295492,1744901440507,-494.27639329,0.0009315,120]
[358295493,1744901440516,-532.99160429,0.0009315,120]
[358295494,1744901440526,-500.0,0.0009315,120]
[358295495,1744901440535,-500.0,0.0009315,120]
[358295496,1744901440545,-500.0,0.0009315,120]
[358295497,1744901440555,-500.0,0.0009315,120]
[358295498,1744901440565,-389.17,0.0009315,120]
[358295499,1744901440575,-500.0,0.0009315,120]
[358295500,1744901440586,-164.69,0.0009315,120]
[358295501,1744901440595,-500.0,0.0009315,120]
[358295502,1744901440606,-500.0,0.0009315,120]
[358295503,1744901440616,-500.0,0.0009315,120]
[358295504,1744901440626,-500.0,0.0009315,120]
[358295505,1744901440636,-500.0,0.0009315,120]
[358295506,1744901440646,-500.0,0.0009315,120]
[358295507,1744901440656,-500.0,0.0009315,120]
[358295508,1744901440665,-500.0,0.0009315,120]
[358295509,1744901440675,-500.0,0.0009315,120]
[358295511,1744901440685,-500.0,0.0009315,120]
[358295514,1744901440695,-517.9,0.0009315,120]
[358295515,1744901440705,-500.0,0.0009315,120]
[358295517,1744901440716,-500.0,0.0009315,120]
[358295520,1744901440725,-500.0,0.0009315,120]
[358295522,1744901440736,-500.0,0.0009315,120]
[358295524,1744901440746,-500.0,0.0009315,120]
[358295526,1744901440756,-500.0,0.0009315,120]
[358295528,1744901440765,-500.0,0.0009315,120]
[358295530,1744901440775,-500.0,0.0009315,120]
[358295532,1744901440784,-530.34922434,0.0009315,120]
[358295534,1744901440793,-500.0,0.0009315,120]
[358295535,1744901440803,-3551.18861884,0.00093675,15]
[358295537,1744901440812,-174.04,0.0009448,2]
[358295539,1744901440822,-1000.0,0.00094515,120]
[358295541,1744901440832,-1052.61069571,0.00094899,15]
[358295543,1744901440842,-1188.19382416,0.000949,66]
[358295545,1744901440851,-153.364938,0.00094973,30]
[358295547,1744901440862,-248.8207864,0.0009498,8]
[358295549,1744901440872,-746.4623592,0.00094989,8]
[358295551,1744901440882,-746.4623592,0.0009499,8]
[358295553,1744901440891,-208.51,0.00094998,120]
[358295555,1744901440900,-500.0,0.00094998,120]
[358295557,1744901440909,-500.0,0.00094998,120]
[358295559,1744901440919,-500.0,0.00094998,120]
[358295561,1744901440928,-480.83044828,0.00094998,120]
[358295563,1744901440937,-500.0,0.00094998,120]
[358295564,1744901440947,-500.0,0.00094999,120]
[358295565,1744901440956,-500.0,0.00094999,120]
[358295566,1744901440966,-500.0,0.00094999,120]
[358295567,1744901440975,-500.0,0.00094999,120]
[358295568,1744901440986,-533.26,0.00094999,120]
[358295569,1744901440996,-500.0,0.00094999,120]
[358295570,1744901441006,-500.0,0.00094999,120]
[358295571,1744901441016,-563.68,0.00094999,120]
[358295572,1744901441026,-500.0,0.00094999,2]
[358295573,1744901441036,-500.0,0.00094999,120]
[358295574,1744901441046,-500.0,0.00094999,120]
[358295575,1744901441056,-500.0,0.00094999,120]
[358295576,1744901441065,-500.0,0.00094999,120]
[358295577,1744901441074,-500.0,0.00094999,120]
[358295578,1744901441083,-500.0,0.00094999,120]
[358295579,1744901441094,-500.0,0.00094999,120]
[358295580,1744901441105,-266.39536749,0.00094999,120]
[358295581,1744901441114,-500.0,0.00094999,120]
[358295582,1744901441125,-500.0,0.00094999,120]
[358295583,1744901441135,-500.0,0.00094999,120]
[358295584,1744901441145,-500.0,0.00094999,120]
[358295585,1744901441154,-508.83002225,0.00094999,120]
[358295586,1744901441163,-500.0,0.00094999,120]
[358295587,1744901441173,-500.0,0.00094999,120]
[358295588,1744901441183,-500.0,0.00094999,120]
[358295589,1744901441197,-534.9524165,0.00094999,120]
[358295590,1744901441207,-536.8733054,0.00094999,120]
[358295591,1744901441216,-359.69960649,0.00094999,120]
[358295592,1744901441226,-526.38,0.00094999,120]
[358295593,1744901441237,-500.0,0.00094999,120]
[358295594,1744901441251,-500.0,0.00094999,120]
[358295595,1744901441263,-397.87137465,0.00094999,120]
[358295596,1744901441274,-500.0,0.00094999,120]
[358295597,1744901441286,-515.85028159,0.00094999,120]
[358295598,1744901441296,-500.0,0.00094999,120]
[358295599,1744901441307,-500.0,0.00094999,120]
[358295600,1744901441318,-500.0,0.00094999,120]
[358295601,1744901441328,-500.0,0.00094999,120]
[358295602,1744901441339,-500.0,0.00094999,120]
[358295603,1744901441348,-500.0,0.00094999,120]
[358295604,1744901441358,-500.0,0.00094999,120]
[358295605,1744901441368,-500.0,0.00094999,120]
[358295606,1744901441378,-500.0,0.00094999,120]
[358295607,1744901441388,-500.0,0.00094999,120]
[358295608,1744901441398,-500.0,0.00094999,120]
[358295609,1744901441408,-500.0,0.00094999,120]
[358295610,1744901441418,-500.0,0.00094999,120]
[358295611,1744901441427,-500.0,0.00094999,120]
[358295612,1744901441437,-500.0,0.00094999,120]
[358295613,1744901441447,-500.0,0.00094999,120]
[358295614,1744901441456,-500.0,0.00094999,120]
[358295615,1744901441467,-500.0,0.00094999,120]
[358295616,1744901441476,-500.0,0.00094999,120]
[358295617,1744901441486,-500.0,0.00094999,120]
[358295618,1744901441499,-500.0,0.00094999,120]
[358295619,1744901441509,-500.0,0.00094999,120]
[358295620,1744901441519,-637.82374794,0.00094999,120]
[358295621,1744901441529,-500.0,0.00094999,120]
[358295622,1744901441538,-500.0,0.00094999,120]
[358295623,1744901441548,-500.0,0.00094999,120]
[358295624,1744901441558,-500.0,0.00094999,120]
[358295625,1744901441567,-500.0,0.00094999,120]
[358295626,1744901441577,-500.0,0.00094999,120]
[358295627,1744901441587,-500.0,0.00094999,120]
[358295628,1744901441596,-298.74,0.00094999,120]
[358295629,1744901441607,-500.0,0.00094999,120]
[358295630,1744901441617,-500.0,0.00094999,120]
[358295631,1744901441627,-500.0,0.00094999,120]
[358295632,1744901441637,-501.0,0.00094999,120]
[358295633,1744901441645,-500.0,0.00094999,120]
[358295634,1744901441655,-500.0,0.00094999,120]
[358295635,1744901441665,-784.15,0.00094999,120]
[358295636,1744901441674,-532.3029607,0.00094999,120]
[358295637,1744901441684,-500.0,0.00094999,120]
[358295638,1744901441694,-500.0,0.00094999,120]
[358295639,1744901441703,-500.0,0.00094999,120]
[358295640,1744901441714,-500.0,0.00094999,120]
[358295641,1744901441723,-500.0,0.00094999,120]
[358295642,1744901441734,-500.0,0.00094999,120]
[358295643,1744901441744,-500.0,0.00094999,120]
[358295644,1744901441755,-500.0,0.00094999,120]
[358295645,1744901441765,-522.08405698,0.00094999,120]
[358295646,1744901441774,-500.0,0.00094999,7]
[358295647,1744901441784,-500.0,0.00094999,120]